fUST/lending_fUST_20250715
["ID","MTS","AMOUNT","RATE_DAILY","PERIOD"]
[372251690,1752562259575,-151.0,0.00022986,7]
[372251692,1752562259585,-191.062616,0.00022986,7]
[372251694,1752562259594,-191.062616,0.00022986,7]
[372251696,1752562259605,-720.401618,0.00022986,7]
[372251698,1752562259614,-720.401618,0.00022986,7]
[372251700,1752562259624,-151.0,0.00022986,7]
[372251702,1752562259634,-164.316515,0.00022986,7]
[372251704,1752562259644,-164.316515,0.00022986,7]
[372251706,1752562259653,-2620.46,0.00022986,6]
[372251708,1752562259663,-587.0,0.00022998,2]
[372251710,1752562259676,-587.0,0.00022998,2]
[372251712,1752562259686,-181330.10673143,0.00023,10]
[372251714,1752562259696,-151.0,0.00023,7]
[372251716,1752562259706,-151.0,0.00023,7]
[372251718,1752562259715,-151.0,0.00023,7]
[372251720,1752562259724,-151.0,0.00023,7]
[372251722,1752562259734,-151.0,0.00023,7]
[372251724,1752562259744,-151.0,0.00023,3]
[372251726,1752562259755,-151.0,0.00023,7]
[372251728,1752562259765,-152.550632,0.00023,7]
[372251730,1752562259775,-151.0,0.00023,7]
[372251732,1752562259784,-151.0,0.00023,7]
[372251734,1752562259794,-156.527578,0.00023,7]
[372251736,1752562259804,-151.0,0.00023,7]
[372251738,1752562259813,-151.0,0.00023,7]
[372251740,1752562259823,-151.0,0.00023,7]
[372251742,1752562259833,-160.0,0.00023,3]
[372251744,1752562259843,-72786.03707723,0.00023,10]
[372251746,1752562259852,-1334.54204462,0.00023,2]
[372251748,1752562259862,-160.0,0.00023,3]
[372251750,1752562259871,-171.142837,0.00023,7]
[372251752,1752562259880,-151.0,0.00023,7]
[372251754,1752562259889,-155.404717,0.00023,7]
[372251756,1752562259899,-973.53671,0.00023,7]
[372251758,1752562259909,-973.53671,0.00023,7]
[372251760,1752562259918,-151.0,0.00023,7]
[372251762,1752562259928,-151.0,0.00023,7]
[372251764,1752562259937,-235.311856,0.00023,7]
[372251766,1752562259947,-169.95868,0.00023,7]
[372251768,1752562259957,-169.958684,0.00023,7]
[372251779,1752562260048,-166.790333,0.00023,7]
[372251781,1752562260059,-151.0,0.00023,7]
[372251783,1752562260069,-166.790332,0.00023,7]
[372251785,1752562260079,-306.276288,0.00023,7]
[372251787,1752562260089,-153.068854,0.00023,7]
[372251789,1752562260099,-153.068854,0.00023,7]
[372251791,1752562260109,-151.786461,0.00023,7]
[372251793,1752562260119,-151.0,0.00023,7]
[372251795,1752562260128,-151.0,0.00023,7]
[372251797,1752562260138,-152.62034,0.00023,7]
[372251799,1752562260147,-151.0,0.00023,7]
[372251801,1752562260157,-151.0,0.00023,7]
[372251803,1752562260166,-151.0,0.00023,7]
[372251805,1752562260175,-151.0,0.00023,7]
[372251807,1752562260185,-151.0,0.00023,7]
[372251809,1752562260195,-151.0,0.00023,7]
[372251811,1752562260206,-213.387446,0.00023,7]
[372251813,1752562260215,-213.387446,0.00023,7]
[372251815,1752562260226,-151.0,0.00023,7]
[372251817,1752562260236,-1872.64052,0.00023,7]
[372251819,1752562260246,-345.590508,0.00023,7]
[372251821,1752562260256,-345.590508,0.00023,7]
[372251823,1752562260266,-151.0,0.00023,7]
[372251825,1752562260277,-536.290029,0.00023,7]
[372251827,1752562260286,-536.290029,0.00023,7]
[372251829,1752562260296,-1000.0,0.00023,5]
[372251831,1752562260307,-1000.0,0.00023,5]
[372251833,1752562260317,-646.323805,0.00023,7]
[372251835,1752562260326,-646.323805,0.00023,7]
[372251837,1752562260337,-278.697552,0.00023,7]
[372251839,1752562260346,-151.0,0.00023,7]
[372251841,1752562260355,-262.849076,0.00023,7]
[372251843,1752562260365,-262.849076,0.00023,7]
[372251845,1752562260375,-151.0,0.00023,7]
[372251847,1752562260385,-780.231773,0.00023,7]
[372251849,1752562260395,-780.231773,0.00023,7]
[372251851,1752562260405,-151.0,0.00023,7]
[372251853,1752562260415,-620.946716,0.00023,7]
[372251855,1752562260425,-620.946716,0.00023,7]
[372251857,1752562260435,-160.0,0.00023,3]
[372251859,1752562260445,-151.0,0.00023,7]
[372251861,1752562260455,-210.538899,0.00023,7]
[372251863,1752562260465,-210.538899,0.00023,7]
[372251865,1752562260477,-230.76969291,0.00023,3]
[372251867,1752562260487,-1385.722063,0.00023,7]
[372251869,1752562260496,-1385.722063,0.00023,7]
[372251871,1752562260506,-160.0,0.00023,3]
[372251873,1752562260520,-160.0,0.00023,3]
[372251875,1752562260530,-160.0,0.00023,3]
[372251877,1752562260539,-200.0,0.00023,2]
[372251879,1752562260549,-160.0,0.00023,3]
[372251881,1752562260558,-215.50840239,0.00023,3]
[372251883,1752562260567,-215.50840239,0.00023,3]
[372251885,1752562260577,-838.84061749,0.00023,3]
[372251887,1752562260587,-525.51022752,0.00023,3]
[372251889,1752562260597,-838.84061749,0.00023,3]
[372251891,1752562260607,-525.51022752,0.00023,3]
[372251893,1752562260617,-3825.0,0.00023005,2]
[372251895,1752562260627,-151.0,0.00023005,7]
[372251897,1752562260637,-191.062616,0.00023005,7]
[372251899,1752562260646,-191.062616,0.00023005,7]
[372251901,1752562260655,-720.401618,0.00023005,7]
[372251903,1752562260665,-720.401618,0.00023005,7]
[372251905,1752562260679,-151.0,0.00023005,7]
[372251907,1752562260688,-164.316515,0.00023005,7]
[372251909,1752562260698,-164.316515,0.00023005,7]
[372251911,1752562260708,-876.73,0.00023013,2]
[372251913,1752562260718,-601.14,0.00023013,2]
[372251915,1752562260729,-460.0,0.00023013,2]
[372251917,1752562260739,-530.91,0.00023013,2]
[372251919,1752562260749,-460.0,0.00023013,2]
[372251921,1752562260759,-859.4,0.00023013,2]
[372251923,1752562260768,-460.0,0.00023013,2]
[372251925,1752562260778,-460.0,0.00023013,2]
[372251927,1752562260788,-700.69,0.00023013,2]
[372251929,1752562260798,-941.73,0.00023013,2]
[372251931,1752562260807,-5746.08,0.00023013,2]
[372251933,1752562260817,-358.88178713,0.00023013,2]
[372251935,1752562260827,-2477.79,0.00023013,2]
[372251937,1752562260836,-345.0,0.00023014,7]
[372251939,1752562260846,-3825.0,0.0002302,2]
[372251941,1752562260856,-300.0,0.00023021,2]
[372251943,1752562260865,-300.0,0.00023021,2]
[372251945,1752562260875,-160.0,0.00023051,13]
[372251947,1752562260884,-560.0,0.00023052,2]
[372251949,1752562260894,-1500.0,0.00023068,2]
[372251951,1752562260904,-1500.0,0.00023068,2]
[372251953,1752562260913,-497.93,0.00023074,2]
[372251955,1752562260923,-636.48,0.00023074,2]
[372251957,1752562260934,-2620.46,0.00023086,3]
[372251959,1752562260944,-741.0,0.00023111,2]
[372251961,1752562260954,-741.0,0.00023127,2]
[372251963,1752562260964,-151.0,0.00023151,6]
[372251966,1752562260974,-160.0,0.00023164,14]
[372251967,1752562260984,-260.510826,0.00023173,20]
[372251970,1752562260994,-2620.46,0.00023186,5]
[372251971,1752562261005,-585.0,0.00023203,2]
[372251973,1752562261016,-460.0,0.00023208,2]
[372251975,1752562261027,-564.46,0.00023208,2]
[372251978,1752562261038,-632.47,0.00023208,2]
[372251979,1752562261047,-3532.72,0.00023208,2]
[372251982,1752562261057,-460.0,0.00023208,2]
[372251983,1752562261067,-460.0,0.00023208,2]
[372251985,1752562261078,-5786.89,0.00023208,2]
[372251988,1752562261088,-4811.36,0.00023209,2]
[372251990,1752562261099,-460.0,0.00023209,2]
[372251991,1752562261109,-1071.41,0.00023209,2]
[372251994,1752562261119,-2535.92,0.00023209,2]
[372251995,1752562261128,-658.22,0.00023209,2]
[372251997,1752562261138,-3527.94,0.00023209,2]
[372251999,1752562261148,-692.45,0.00023209,2]
[372252001,1752562261157,-463.25,0.00023209,2]
[372252003,1752562261167,-810.61,0.00023209,2]
[372252005,1752562261177,-2370.09,0.00023209,2]
[372252007,1752562261186,-509.93,0.00023209,2]
[372252009,1752562261196,-819.58,0.00023209,2]
[372252012,1752562261206,-874.96,0.00023209,2]
[372252014,1752562261216,-460.0,0.00023209,2]
[372252015,1752562261225,-977.84,0.00023209,2]
[372252017,1752562261235,-460.0,0.0002321,2]
[372252020,1752562261245,-607.85001919,0.0002321,2]
[372252022,1752562261255,-460.0,0.0002321,2]
[372252024,1752562261265,-460.0,0.0002321,2]
[372252026,1752562261274,-568.66,0.0002321,2]
[372252028,1752562261284,-618.74,0.0002321,2]
[372252030,1752562261293,-720.55,0.0002321,2]
[372252032,1752562261303,-1057.22,0.0002321,2]
[372252034,1752562261312,-1390.35,0.0002321,2]
[372252036,1752562261322,-722.11,0.0002321,2]
[372252038,1752562261331,-808.59,0.0002321,2]
[372252039,1752562261340,-888.08,0.0002321,2]
[372252042,1752562261351,-1059.82,0.0002321,2]
[372252044,1752562261360,-460.0,0.0002321,2]
[372252046,1752562261370,-875.06,0.0002321,2]
[372252048,1752562261380,-826.33,0.0002321,2]
[372252050,1752562261390,-581.02,0.0002321,2]
[372252051,1752562261399,-460.0,0.00023211,2]
[372252053,1752562261409,-460.0,0.00023211,2]
[372252055,1752562261419,-6716.04,0.00023211,2]
[372252057,1752562261429,-1559.66,0.00023211,2]
[372252060,1752562261439,-1136.82,0.00023211,2]
[372252062,1752562261449,-874.61,0.00023211,2]
[372252064,1752562261458,-2386.42,0.00023211,2]
[372252065,1752562261468,-562.3,0.00023211,2]
[372252068,1752562261479,-955.93,0.00023211,2]
[372252070,1752562261489,-3601.14,0.00023211,2]
[372252071,1752562261498,-604.75,0.00023211,2]
[372252074,1752562261508,-1761.32,0.00023211,2]
[372252076,1752562261518,-2352.52,0.00023211,2]
[372252078,1752562261529,-1000.0,0.00023268,2]
[372252080,1752562261539,-7305.0492688,0.0002327,2]
[372252082,1752562261549,-200.0,0.0002327,7]
[372252084,1752562261558,-160.0,0.00023277,15]
[372252086,1752562261568,-151.0,0.00023286,7]
[372252087,1752562261578,-306.276288,0.00023286,7]
[372252088,1752562261588,-2620.46,0.00023286,6]
[372252089,1752562261598,-151.0,0.00023287,7]
[372252090,1752562261608,-151.0,0.00023287,7]
[372252091,1752562261617,-151.0,0.00023287,7]
[372252092,1752562261627,-151.0,0.00023287,3]
[372252093,1752562261637,-151.0,0.00023287,7]
[372252094,1752562261647,-151.0,0.00023287,7]
[372252095,1752562261657,-151.0,0.00023287,7]
[372252096,1752562261668,-151.0,0.00023287,7]
[372252097,1752562261679,-151.0,0.00023287,7]
[372252098,1752562261690,-151.0,0.00023287,7]
[372252099,1752562261700,-973.53671,0.00023287,7]
[372252100,1752562261710,-973.53671,0.00023287,7]
[372252101,1752562261798,-151.0,0.00023287,7]
[372252102,1752562261809,-151.0,0.00023287,7]
[372252103,1752562261819,-153.068854,0.00023287,7]
[372252104,1752562261829,-153.068854,0.00023287,7]
[372252105,1752562261839,-876.73,0.00023287,2]
[372252106,1752562261848,-601.14,0.00023287,2]
[372252108,1752562261858,-460.0,0.00023287,2]
[372252109,1752562261867,-530.91,0.00023287,2]
[372252110,1752562261877,-460.0,0.00023287,2]
[372252113,1752562261887,-859.4,0.00023287,2]
[372252114,1752562261897,-460.0,0.00023287,2]
[372252116,1752562261906,-460.0,0.00023287,2]
[372252119,1752562261917,-700.69,0.00023287,2]
[372252121,1752562261926,-941.73,0.00023287,2]
[372252123,1752562261936,-5746.08,0.00023287,2]
[372252125,1752562261945,-2477.79,0.00023287,2]
[372252127,1752562261955,-151.0,0.00023288,7]
[372252129,1752562261964,-151.0,0.00023288,7]
[372252131,1752562261976,-151.0,0.00023288,7]
[372252133,1752562261986,-151.0,0.00023288,7]
[372252135,1752562261996,-600.0,0.00023288,2]
[372252137,1752562262006,-151.0,0.00023288,3]
[372252138,1752562262016,-151.0,0.000233,7]
[372252140,1752562262026,-2817.87016695,0.00023312,2]
[372252142,1752562262035,-151.0,0.00023314,7]
[372252144,1752562262045,-151.0,0.00023314,7]
[372252147,1752562262055,-213.387446,0.00023314,7]
[372252148,1752562262064,-213.387446,0.00023314,7]
[372252151,1752562262074,-1872.64052,0.00023314,7]
[372252152,1752562262083,-250.0,0.00023315,2]
[372252155,1752562262094,-151.0,0.00023315,3]
[372252157,1752562262103,-205.0,0.0002334,2]
[372252158,1752562262113,-429.0948676,0.00023342,2]
[372252161,1752562262123,-429.0948676,0.00023342,2]
[372252162,1752562262133,-429.0948676,0.00023342,2]
[372252165,1752562262142,-429.0948676,0.00023342,2]
[372252167,1752562262152,-429.0948676,0.00023342,2]
[372252169,1752562262161,-429.0948676,0.00023342,2]
[372252170,1752562262171,-429.0948676,0.00023342,2]
[372252172,1752562262181,-429.0948676,0.00023342,2]
[372252174,1752562262190,-429.0948676,0.00023342,2]
[372252176,1752562262199,-240.8247983,0.00023342,2]
[372252179,1752562262210,-151.0,0.00023343,3]
[372252180,1752562262219,-7229.20368157,0.00023347,2]
[372252182,1752562262231,-151.0,0.00023348,7]
[372252184,1752562262240,-497.93,0.00023348,2]
[372252186,1752562262250,-636.48,0.00023348,2]
[372252189,1752562262260,-151.0,0.0002335,7]
[372252190,1752562262270,-151.0,0.0002335,7]
[372252192,1752562262280,-210.538899,0.0002335,7]
[372252194,1752562262291,-210.538899,0.0002335,7]
[372252197,1752562262300,-1385.722063,0.0002335,7]
[372252199,1752562262310,-1385.722063,0.0002335,7]
[372252201,1752562262320,-741.0,0.00023365,2]
[372252202,1752562262331,-219.87595333,0.0002337,3]
[372252204,1752562262341,-2620.46,0.00023386,3]
[372252207,1752562262351,-160.0,0.0002339,16]
[372252208,1752562262361,-500.62806537,0.000234,2]
[372252210,1752562262371,-621.63084605,0.00023455,2]
[372252213,1752562262383,-151.0,0.00023455,7]
[372252215,1752562262393,-500.0,0.00023456,2]
[372252216,1752562262403,-500.0,0.00023473,2]
[372252219,1752562262413,-460.0,0.00023482,2]
[372252221,1752562262423,-564.46,0.00023482,2]
[372252223,1752562262432,-632.47,0.00023482,2]
[372252225,1752562262442,-460.0,0.00023482,2]
[372252227,1752562262452,-3532.72,0.00023482,2]
[372252229,1752562262462,-460.0,0.00023482,2]
[372252231,1752562262474,-5786.89,0.00023482,2]
[372252233,1752562262484,-4811.36,0.00023483,2]
[372252235,1752562262494,-460.0,0.00023483,2]
[372252237,1752562262505,-1071.41,0.00023483,2]
[372252239,1752562262515,-2535.92,0.00023483,2]
[372252241,1752562262525,-658.22,0.00023483,2]
[372252243,1752562262535,-3527.94,0.00023483,2]
[372252245,1752562262545,-692.45,0.00023483,2]
[372252247,1752562262554,-463.25,0.00023483,2]
[372252249,1752562262565,-810.61,0.00023483,2]
[372252251,1752562262575,-2370.09,0.00023483,2]
[372252253,1752562262586,-509.93,0.00023483,2]
[372252255,1752562262595,-819.58,0.00023483,2]
[372252257,1752562262605,-874.96,0.00023483,2]
[372252259,1752562262614,-192.41077054,0.00023483,2]
[372252261,1752562262625,-977.84,0.00023483,2]
[372252263,1752562262635,-460.0,0.00023484,2]
[372252265,1752562262644,-460.0,0.00023484,2]
[372252267,1752562262657,-497.79805885,0.00023484,2]
[372252269,1752562262678,-568.66,0.00023484,2]
[372252271,1752562262701,-618.74,0.00023484,2]
[372252273,1752562262712,-720.55,0.00023484,2]
[372252275,1752562262724,-1057.22,0.00023484,2]
[372252277,1752562262733,-1390.35,0.00023484,2]
[372252279,1752562262743,-722.11,0.00023484,2]
[372252281,1752562262753,-808.59,0.00023484,2]
[372252283,1752562262762,-888.08,0.00023484,2]
[372252284,1752562262773,-1059.82,0.00023484,2]
[372252287,1752562262783,-386.8383951,0.00023484,2]
[372252288,1752562262793,-875.06,0.00023484,2]
[372252290,1752562262802,-826.33,0.00023484,2]
[372252292,1752562262811,-581.02,0.00023484,2]
[372252294,1752562262821,-6716.04,0.00023485,2]
[372252297,1752562262831,-1559.66,0.00023485,2]
[372252299,1752562262841,-1136.82,0.00023485,2]
[372252300,1752562262851,-874.61,0.00023485,2]
[372252302,1752562262860,-2386.42,0.00023485,2]
[372252304,1752562262869,-562.3,0.00023485,2]
[372252306,1752562262879,-955.93,0.00023485,2]
[372252308,1752562262888,-3601.14,0.00023485,2]
[372252310,1752562262898,-604.75,0.00023485,2]
[372252312,1752562262907,-1761.32,0.00023485,2]
[372252314,1752562262917,-2352.52,0.00023485,2]
[372252316,1752562262927,-2620.46,0.00023486,6]
[372252318,1752562262936,-864.31156983,0.00023493,2]
[372252320,1752562262947,-1096.0,0.000235,5]
[372252322,1752562262957,-2000.0,0.000235,2]
[372252324,1752562262966,-6756.69,0.000235,7]
[372252327,1752562262978,-3253.21,0.000235,7]
[372252328,1752562262988,-42694.42,0.000235,2]
[372252330,1752562262997,-151.0,0.000235,7]
[372252332,1752562263006,-151.0,0.000235,7]
[372252334,1752562263016,-151.0,0.000235,7]
[372252336,1752562263026,-151.0,0.000235,7]
[372252339,1752562263036,-151.0,0.000235,7]
[372252340,1752562263051,-151.0,0.000235,7]
[372252342,1752562263060,-151.0,0.000235,7]
[372252344,1752562263069,-345.590508,0.000235,7]
[372252346,1752562263079,-345.590508,0.000235,7]
[372252348,1752562263089,-151.0,0.000235,7]
[372252350,1752562263099,-536.290029,0.000235,7]
[372252352,1752562263109,-536.290029,0.000235,7]
[372252354,1752562263119,-646.323805,0.000235,7]
[372252357,1752562263128,-646.323805,0.000235,7]
[372252359,1752562263138,-151.0,0.000235,7]
[372252360,1752562263148,-262.849076,0.000235,7]
[372252362,1752562263157,-262.849076,0.000235,7]
[372252364,1752562263167,-780.231773,0.000235,7]
[372252366,1752562263177,-780.231773,0.000235,7]
[372252368,1752562263186,-620.946716,0.000235,7]
[372252370,1752562263196,-620.946716,0.000235,7]
[372252372,1752562263205,-151.0,0.000235,7]
[372252374,1752562263215,-151.0,0.000235,7]
[372252376,1752562263225,-191.062616,0.000235,7]
[372252378,1752562263234,-191.062616,0.000235,7]
[372252380,1752562263244,-720.401618,0.000235,7]
[372252382,1752562263254,-720.401618,0.000235,7]
[372252384,1752562263263,-211.072274,0.000235,7]
[372252386,1752562263273,-164.316515,0.000235,7]
[372252388,1752562263282,-164.316515,0.000235,7]
[372252390,1752562263291,-160.0,0.00023504,17]
[372252392,1752562263301,-160.0,0.00023504,5]
[372252394,1752562263310,-160.0,0.00023504,5]
[372252396,1752562263321,-500.0,0.00023544,2]
[372252398,1752562263330,-3000.0,0.0002355,2]
[372252400,1752562263339,-2200.0,0.00023554,2]
[372252402,1752562263348,-654.326,0.00023554,2]
[372252412,1752562263431,-585.0,0.00023556,2]
[372252414,1752562263442,-151.0,0.00023557,6]
[372252416,1752562263451,-151.0,0.00023561,7]
[372252418,1752562263462,-164.56462,0.00023561,3]
[372252420,1752562263472,-151.0,0.00023561,7]
[372252421,1752562263483,-151.0,0.00023561,7]
[372252423,1752562263492,-151.0,0.00023561,7]
[372252426,1752562263502,-151.0,0.00023561,7]
[372252427,1752562263512,-876.73,0.00023561,2]
[372252429,1752562263522,-601.14,0.00023561,2]
[372252432,1752562263532,-460.0,0.00023561,2]
[372252434,1752562263542,-530.91,0.00023561,2]
[372252436,1752562263552,-460.0,0.00023561,2]
[372252437,1752562263561,-859.4,0.00023561,2]
[372252439,1752562263570,-231.27,0.00023561,2]
[372252441,1752562263580,-231.27,0.00023561,2]
[372252443,1752562263589,-231.27,0.00023561,2]
[372252445,1752562263599,-231.27,0.00023561,2]
[372252447,1752562263609,-231.27,0.00023561,2]
[372252449,1752562263619,-231.27,0.00023561,2]
[372252451,1752562263629,-231.27,0.00023561,2]
[372252453,1752562263640,-231.27,0.00023561,2]
[372252456,1752562263652,-231.27,0.00023561,2]
[372252458,1752562263662,-231.27,0.00023561,2]
[372252459,1752562263675,-231.27,0.00023561,2]
[372252461,1752562263685,-231.27,0.00023561,2]
[372252463,1752562263695,-231.27,0.00023561,2]
[372252465,1752562263705,-231.27,0.00023561,2]
[372252467,1752562263716,-355.60449597,0.00023561,2]
[372252469,1752562263726,-460.0,0.00023561,2]
[372252471,1752562263736,-700.69,0.00023561,2]
[372252473,1752562263746,-941.73,0.00023561,2]
[372252475,1752562263758,-5746.08,0.00023561,2]
[372252477,1752562263767,-2477.79,0.00023561,2]
[372252479,1752562263777,-450.0,0.00023568,2]
[372252481,1752562263787,-450.0,0.00023568,2]
[372252483,1752562263797,-151.0,0.00023586,7]
[372252485,1752562263807,-151.0,0.00023586,7]
[372252487,1752562263816,-151.0,0.00023586,7]
[372252489,1752562263826,-2620.46,0.00023586,5]
[372252491,1752562263835,-53310.42,0.000236,7]
[372252493,1752562263845,-2570.299,0.000236,2]
[372252495,1752562263854,-2570.299,0.000236,2]
[372252497,1752562263863,-660.0,0.000236,2]
[372252499,1752562263873,-223.0315306,0.00023606,2]
[372252501,1752562263882,-2000.0,0.00023616,2]
[372252503,1752562263891,-2000.0,0.00023616,2]
[372252505,1752562263901,-159.7039591,0.00023616,2]
[372252507,1752562263910,-177.9926445,0.00023616,2]
[372252509,1752562263920,-576.7692041,0.00023616,2]
[372252511,1752562263931,-159.7039591,0.00023616,2]
[372252513,1752562263941,-576.7692041,0.00023616,2]
[372252515,1752562263950,-177.9926445,0.00023616,2]
[372252517,1752562263960,-177.9926445,0.00023616,2]
[372252519,1752562263971,-159.7039591,0.00023616,2]
[372252521,1752562263981,-576.7692041,0.00023616,2]
[372252523,1752562263990,-177.9926445,0.00023616,2]
[372252525,1752562264001,-159.7039591,0.00023616,2]
[372252527,1752562264011,-576.7692041,0.00023616,2]
[372252529,1752562264021,-177.9926445,0.00023616,2]
[372252531,1752562264030,-177.4429073,0.00023616,2]
[372252533,1752562264042,-497.93,0.00023622,2]
[372252535,1752562264053,-231.27,0.00023622,2]
[372252537,1752562264063,-636.48,0.00023622,2]
[372252539,1752562264072,-995.0,0.00023655,2]
[372252541,1752562264082,-973.53671,0.00023659,7]
[372252543,1752562264091,-973.53671,0.00023659,7]
[372252545,1752562264101,-260.510826,0.00023677,20]
[372252547,1752562264111,-2620.46,0.00023686,5]
[372252550,1752562264120,-207.0,0.0002371,2]
[372252551,1752562264130,-205.0,0.0002371,2]
[372252554,1752562264140,-7229.20368157,0.00023714,2]
[372252556,1752562264149,-151.0,0.00023734,7]
[372252557,1752562264159,-306.276288,0.00023734,7]
[372252560,1752562264168,-306.276288,0.00023734,7]
[372252562,1752562264178,-991.2173877,0.00023753,3]
[372252564,1752562264188,-460.0,0.00023756,2]
[372252566,1752562264197,-564.46,0.00023756,2]
[372252567,1752562264206,-632.47,0.00023756,2]
[372252569,1752562264215,-460.0,0.00023756,2]
[372252571,1752562264226,-3532.72,0.00023756,2]
[372252573,1752562264236,-460.0,0.00023756,2]
[372252576,1752562264246,-5786.89,0.00023756,2]
[372252577,1752562264256,-4811.36,0.00023757,2]
[372252580,1752562264267,-460.0,0.00023757,2]
[372252581,1752562264277,-1071.41,0.00023757,2]
[372252584,1752562264287,-2535.92,0.00023757,2]
[372252585,1752562264301,-658.22,0.00023757,2]
[372252587,1752562264314,-3527.94,0.00023757,2]
[372252589,1752562264324,-692.45,0.00023757,2]
[372252590,1752562264334,-463.25,0.00023757,2]
[372252591,1752562264345,-810.61,0.00023757,2]
[372252592,1752562264355,-2370.09,0.00023757,2]
[372252593,1752562264365,-509.93,0.00023757,2]
[372252594,1752562264375,-819.58,0.00023757,2]
[372252595,1752562264385,-874.96,0.00023757,2]
[372252596,1752562264395,-977.84,0.00023757,2]
[372252597,1752562264405,-460.0,0.00023758,2]
[372252598,1752562264415,-460.0,0.00023758,2]
[372252599,1752562264425,-568.66,0.00023758,2]
[372252600,1752562264435,-618.74,0.00023758,2]
[372252602,1752562264444,-720.55,0.00023758,2]
[372252604,1752562264454,-1057.22,0.00023758,2]
[372252606,1752562264463,-1390.35,0.00023758,2]
[372252609,1752562264473,-722.11,0.00023758,2]
[372252611,1752562264483,-808.59,0.00023758,2]
[372252612,1752562264492,-888.08,0.00023758,2]
[372252615,1752562264502,-1059.82,0.00023758,2]
[372252616,1752562264511,-875.06,0.00023758,2]
[372252618,1752562264521,-826.33,0.00023758,2]
[372252621,1752562264531,-581.02,0.00023758,2]
[372252622,1752562264541,-6716.04,0.00023759,2]
[372252624,1752562264551,-1559.66,0.00023759,2]
[372252627,1752562264560,-1136.82,0.00023759,2]
[372252629,1752562264570,-874.61,0.00023759,2]
[372252630,1752562264580,-2386.42,0.00023759,2]
[372252632,1752562264590,-562.3,0.00023759,2]
[372252635,1752562264600,-955.93,0.00023759,2]
[372252637,1752562264609,-3601.14,0.00023759,2]
[372252638,1752562264618,-604.75,0.00023759,2]
[372252641,1752562264628,-1761.32,0.00023759,2]
[372252642,1752562264638,-2352.52,0.00023759,2]
[372252644,1752562264647,-2620.46,0.00023786,6]
[372252646,1752562264656,-9830.96007939,0.000238,2]
[372252649,1752562264666,-151.0,0.000238,7]
[372252650,1752562264679,-213.387446,0.000238,7]
[372252652,1752562264688,-213.387446,0.000238,7]
[372252654,1752562264697,-1872.64052,0.000238,7]
[372252657,1752562264707,-1872.64052,0.000238,7]
[372252659,1752562264717,-152.66861,0.000238,7]
[372252660,1752562264726,-151.0,0.000238,7]
[372252663,1752562264736,-210.538899,0.000238,7]
[372252665,1752562264746,-210.538899,0.000238,7]
[372252667,1752562264756,-1385.722063,0.000238,7]
[372252668,1752562264767,-1385.722063,0.000238,7]
[372252670,1752562264776,-151.0,0.00023831,7]
[372252672,1752562264786,-151.0,0.00023831,7]